[Event "2nd Serbia Open Masters 2022"]
[Site "Novi Sad"]
[Date "2022.07.02"]
[Round "5.23"]
[White "Pranav Vijay"]
[Black "Rohith Krishna S"]
[Result "1-0"]
[ECO "C91"]
[WhiteElo "2265"]
[BlackElo "2337"]
[Annotator "TA"]
[PlyCount "91"]
[EventDate "2022.06.28"]
[EventType "swiss"]
[EventCountry "SRB"]
[SourceTitle "playchess.com"]
[Source "ChessBase"]
[SourceQuality "1"]
[TimeControl "40/5400+30:900+30"]

{[%evp 19,90,47,60,58,47,46,66,38,40,40,36,42,39,29,59,52,54,49,68,54,104,110,195,39,50,44,38,55,80,93,137,76,143,149,145,137,132,141,135,150,135,129,128,96,243,222,239,230,206,225,477,443,787,602,500,395,406,346,981,956,1431,1289,1048,818,29993,29994,29994,29995,29996,29995,29998,29999,29999]} 1. e4 {[%emt 0:00:05]} e5 {[%emt 0:00:23]} 2. Nf3 {[%emt 0:00:08]} Nc6 {[%emt 0:00:07]} 3. Bb5 {[%emt 0:00:07]} a6 {[%emt 0:00:05]} 4. Ba4 {[%emt 0:00:27]} Nf6 {[%emt 0:00:08]} 5. O-O {[%emt 0:00:08]} Be7 {[%emt 0:00:05]} 6. Re1 {[%emt 0:00:24]} b5 {[%emt 0:00:09]} 7. Bb3 {[%emt 0:00:05]} d6 {[%emt 0:00:08]} 8. c3 {[%emt 0:00:07]} O-O {[%emt 0:00:07]} 9. d4 {[%emt 0:03:24]} Bb7 {[%emt 0:05:56]} 10. Nbd2 {[%emt 0:07:31][%cal Bb1d2,Bd2f1,Bf1g3,Bg3f5][%mdl 32]} h6 {[%emt 0:03:49]} 11. Nf1 {[%emt 0:02:00] C91: Closed Ruy Lopez: 7...d6 8 c3 0-0 9 d4.} Na5 {[%emt 0:07:50]} 12. Bc2 {[%emt 0:00:52]} Re8 {[%emt 0:00:25]} 13. a4 {[%emt 0:05:05] White is slightly better.} exd4 {[%emt 0:22:43]} 14. cxd4 {[%emt 0:00:48][%cal Bc3d4,Bd4d5][%mdl 32]} Bf8 {[%emt 0:00:58][%cal Rf6e4]} 15. Ng3 {[%emt 0:01:35]} c5 {[%emt 0:03:01]} 16. Bf4 {[%emt 0:07:05]} Nc6 {[%emt 0:09:59] [#]} 17. d5 $146 {[%emt 0:01:33]} ({Predecessor:} 17. axb5 axb5 18. Rxa8 Qxa8 19. d5 Nb4 20. Bb1 Bc8 21. Bd2 Na6 22. Bc3 Ng4 23. e5 {1-0 (35) Ilyuchyk,Y (2119)-Poliakova,V (1952) Minsk 2020}) 17... Nb4 {[%emt 0:05:28]} 18. Bb1 {[%emt 0:00:19]} Nd7 {[%emt 0:00:15]} 19. Bd2 {[%emt 0:13:07]} bxa4 {[%emt 0:01:15]} (19... g6 $14) 20. Nf5 $16 {[%emt 0:02:08]} (20. Rxa4 g6 $14) 20... a5 {[%emt 0:01:16]} (20... Bc8 $16) 21. Bc3 $2 {[%emt 0:02:29]} (21. Rxa4 Nb6 $14) (21. N3h4 $18) 21... g6 $14 {[%emt 0:03:44]} 22. Ne3 {[%emt 0:00:27]} Ba6 {[%emt 0:04:50]} 23. Qxa4 {[%emt 0:02:42]} Nb6 {[%emt 0:03:41]} 24. Qd1 {[%emt 0:00:28]} ({But not} 24. Qxa5 $2 Bb7 25. Qxa8 (25. Bxb4 $2 cxb4 26. Qxb4 Rxa1 $19) 25... Bxa8 $19) 24... Bc8 {[%emt 0:01:44] Prevents Ng4.} 25. Nd2 {[%emt 0:06:51]} (25. h4 $142) 25... Bd7 {[%emt 0:03:37]} (25... Bg7 $142) 26. f4 $1 $16 {[%emt 0:01:03]} Bg7 {[%emt 0:00:36]} 27. Nf3 {[%emt 0:00:59] Inhibits Bd4.} Bb5 {[%emt 0:09:13]} 28. f5 {[%emt 0:04:30]} Nd7 {[%emt 0:01:26] Against e5} 29. fxg6 {[%emt 0:00:40]} fxg6 {[%emt 0:00:07]} 30. e5 {[%emt 0:00:47]} Nxe5 {[%emt 0:00:08]} 31. Nxe5 {[%emt 0:07:02]} Rxe5 {[%emt 0:00:07] A mistake that costs the game.} (31... Bxe5 $16 32. Bxg6 Qh4 33. Bxe5 Rxe5) 32. Bxe5 $18 {[%emt 0:01:31]} ({Weaker is} 32. Bxg6 Qg5 33. Bxe5 Bxe5 $14) 32... Bxe5 {[%emt 0:00:05] [#]} 33. Ng4 $1 {[%emt 0:01:05]} Bd4+ {[%emt 0:03:35]} 34. Kh1 {[%emt 0:00:01]} Bd7 {[%emt 0:00:06] Inhibits Re6.} (34... Qg5) 35. Ra3 {[%emt 0:02:13]} Bg7 {[%emt 0:03:53]} (35... Nxd5 $142 36. Ba2 Bc6) 36. Rg3 {[%emt 0:01:15][%cal Og4h6] Intending Nxh6+! and mate.} Qh4 {[%emt 0:01:45]} 37. Bxg6 {[%emt 0:01:08][%cal Bb1g6,Bg6f5,Bf5e6][%mdl 32] Black must now prevent Rf1.} Rf8 {[%emt 0:00:03]} 38. Rf1 {[%emt 0:00:38] Strongly threatening Rxf8+.} Rd8 {[%emt 0:02:06]} (38... Rxf1+ 39. Qxf1 Qe7 {[#]} 40. Nxh6+ $1 {[%mdl 512]} Kh8 41. Nf5 $18) (38... Bxg4 39. Rxg4 Rxf1+ 40. Qxf1 Qf6) 39. Bf5 {[%emt 0:00:30]} Bb5 {[%emt 0:00:25]} 40. Be6+ {[%emt 0:00:00]} Kh8 {[%emt 0:00:00]} 41. Rf5 {[%emt 0:03:04][%cal Og4h6] aiming for Nxh6!} Rf8 {[%emt 0:01:10]} 42. Rxf8+ {[%emt 0:00:10] White mates.} Bxf8 {[%emt 0:00:05]} 43. Qf3 {[%emt 0:00:06]} Be7 {[%emt 0:01:00]} 44. Ne5 {[%emt 0:00:51]} dxe5 {[%emt 0:00:58]} 45. Rg8+ {[%emt 0:00:05]} Kh7 {[%emt 0:00:04]} 46. Qf7# {[%emt 0:00:06] Weighted Error Value: White=0.14 (very precise) /Black=0.54} 1-0

[Event "2nd Serbia Open Masters 2022"]
[Site "Novi Sad"]
[Date "2022.07.02"]
[Round "5.24"]
[White "Parkhov, Yair"]
[Black "Spasic, Petar"]
[Result "1/2-1/2"]
[ECO "D35"]
[WhiteElo "2460"]
[BlackElo "2336"]
[Annotator "TA"]
[PlyCount "306"]
[EventDate "2022.06.28"]
[EventType "swiss"]
[EventCountry "SRB"]
[SourceTitle "playchess.com"]
[Source "ChessBase"]
[SourceQuality "1"]
[TimeControl "40/5400+30:900+30"]

{[%evp 130,306,150,150,150,150,150,150,150,150,150,150,150,150,150,150,150,150,150,150,150,150,150,150,150,150,150,150,150,150,150,150,150,150,150,150,150,150,150,130,130,110,110,110,114,114,114,114,114,114,114,103,103,103,114,103,103,103,103,103,103,103,103,103,103,103,103,93,103,93,103,103,103,93,103,103,103,103,103,103,103,84,84,84,84,84,84,84,84,33,33,33,33,33,33,0,33,39,84,84,84,84,84,84,84,84,84,84,84,84,84,84,84,0,84,84,84,84,84,84,84,84,84,84,84,84,84,62,84,84,84,84,84,84,84,84,84,84,84,84,84,84,84,0,84,84,84,84,84,84,84,84,84,84,84,84,84,84,84,84,84,84,84,84,84,84,84,84,84,84,84,33,33,33,33,33,33,33,33]} 1. d4 {[%emt 0:00:02]} d5 {[%emt 0:00:25]} 2. c4 {[%emt 0:00:10]} e6 {[%emt 0:00:04]} 3. Nc3 {[%emt 0:00:07]} Nf6 {[%emt 0:00:06]} 4. cxd5 {[%emt 0:00:04]} exd5 {[%emt 0:00:21]} 5. Bg5 {[%emt 0:00:05]} Be7 {[%emt 0:00:20]} 6. e3 {[%emt 0:00:07]} c6 {[%emt 0:00:17]} 7. Bd3 {[%emt 0:00:09]} Ne4 {[%emt 0:02:26]} 8. Bf4 {[%emt 0:11:07]} Qa5 {[%emt 0:12:15]} 9. Nge2 {[%emt 0:01:50]} O-O {[%emt 0:03:16]} 10. Bxe4 {[%emt 0:08:55]} dxe4 {[%emt 0:01:55]} 11. O-O {[%emt 0:00:08]} f5 {[%emt 0:06:46]} 12. d5 {[%emt 0:03:48]} Rf7 {[%emt 0:06:29]} 13. Nd4 {[%emt 0:16:55]} Bd7 {[%emt 0:10:23]} 14. a3 {[%emt 0:12:40]} cxd5 {[%emt 0:13:11]} 15. Qb3 {[%emt 0:09:57]} Qa6 {[%emt 0:01:27]} 16. Nxd5 {[%emt 0:01:19]} Bd8 {[%emt 0:00:03]} 17. a4 {[%emt 0:10:47]} Nc6 {[%emt 0:04:48]} 18. Nb5 {[%emt 0:01:50]} Be6 {[%emt 0:00:49]} 19. Nd6 {[%emt 0:03:06]} Ne7 {[%emt 0:01:33]} 20. Nxe7+ {[%emt 0:01:47]} Rxe7 {[%emt 0:00:07]} 21. Qc3 {[%emt 0:02:35]} Bc7 {[%emt 0:13:50]} 22. Nxf5 {[%emt 0:03:42]} Bxf5 {[%emt 0:00:07]} 23. Bxc7 {[%emt 0:00:02]} Rc8 {[%emt 0:02:00]} 24. Qa5 {[%emt 0:00:07]} Qxa5 {[%emt 0:03:14]} 25. Bxa5 {[%emt 0:00:02]} Rc2 {[%emt 0:04:23]} 26. Bc3 {[%emt 0:00:29]} Bg4 {[%emt 0:00:34]} 27. Bd4 {[%emt 0:02:24]} a6 {[%emt 0:01:28]} 28. Rfc1 {[%emt 0:01:01]} Rec7 {[%emt 0:00:15]} 29. Rxc2 {[%emt 0:00:32]} Rxc2 {[%emt 0:00:05]} 30. Bc3 {[%emt 0:00:08]} Kf7 {[%emt 0:06:51]} 31. h4 {[%emt 0:00:06]} g6 {[%emt 0:02:24]} 32. a5 {[%emt 0:01:53]} Bd7 {[%emt 0:00:52]} 33. Rd1 {[%emt 0:00:13]} Ke7 {[%emt 0:01:17]} 34. Rd5 {[%emt 0:03:49]} Bc6 {[%emt 0:00:21]} 35. Re5+ {[%emt 0:00:51]} Kd6 {[%emt 0:00:07]} 36. Rg5 {[%emt 0:00:08]} Rc1+ {[%emt 0:01:28]} 37. Kh2 {[%emt 0:00:01]} Rd1 {[%emt 0:00:10]} 38. Kg3 {[%emt 0:00:04]} Rd5 {[%emt 0:00:06]} 39. Kf4 {[%emt 0:00:33]} Ke6 {[%emt 0:00:18]} 40. Rxd5 {[%emt 0:00:00]} Bxd5 {[%emt 0:00:00]} 41. Kg5 {[%emt 0:01:44]} Kf7 {[%emt 0:01:32]} 42. Kh6 {[%emt 0:01:48]} Kg8 {[%emt 0:00:57]} 43. h5 {[%emt 0:03:19]} gxh5 {[%emt 0:02:16]} 44. Kxh5 {[%emt 0:01:34]} Kf7 {[%emt 0:00:13]} 45. Kh6 {[%emt 0:00:09]} Kg8 {[%emt 0:00:05]} 46. Kg5 {[%emt 0:10:56]} Kf7 {[%emt 0:00:10]} 47. Be5 {[%emt 0:00:23]} Bc6 {[%emt 0:00:15]} 48. Bd4 {[%emt 0:00:05]} Bd5 {[%emt 0:00:13]} 49. Kf4 {[%emt 0:00:26]} Ke6 {[%emt 0:00:38]} 50. f3 {[%emt 0:00:53]} Bc6 {[%emt 0:00:42]} 51. Kg4 {[%emt 0:01:32]} Bb5 {[%emt 0:06:03]} 52. f4 {[%emt 0:01:24]} Bc6 {[%emt 0:06:43]} 53. Kg5 {[%emt 0:00:15]} Kf7 {[%emt 0:00:00]} 54. Kf5 {[%emt 0:00:59]} Bd5 {[%emt 0:00:32]} 55. Kg5 {[%emt 0:00:55]} Bc4 {[%emt 0:01:12]} 56. g4 {[%emt 0:00:45]} Bd3 {[%emt 0:00:43]} 57. f5 {[%emt 0:00:23]} Bc2 {[%emt 0:00:25]} 58. Kf4 {[%emt 0:00:08]} Bd3 {[%emt 0:00:07]} 59. Ke5 {[%emt 0:00:26]} Bc2 {[%emt 0:00:20]} 60. g5 {[%emt 0:01:00]} Bd3 {[%emt 0:01:03]} 61. b4 {[%emt 0:00:48]} Bc2 {[%emt 0:00:14]} 62. Kd6 {[%emt 0:00:05]} Ba4 {[%emt 0:00:46]} 63. Ke5 {[%emt 0:01:43]} Bc2 {[%emt 0:00:10]} 64. Bc3 {[%emt 0:00:15]} Bd3 {[%emt 0:00:26]} 65. Be1 {[%emt 0:00:51]} Bc2 {[%emt 0:00:07]} 66. Kd6 {[%emt 0:01:03]} Bb3 {[%emt 0:00:30]} 67. Kc7 {[%emt 0:00:27]} Bd5 {[%emt 0:00:05]} 68. Kb6 {[%emt 0:00:36]} Bc6 {[%emt 0:00:24]} 69. Bc3 {[%emt 0:00:08]} Bd5 {[%emt 0:00:15]} 70. Kc5 {[%emt 0:00:15]} Bb3 {[%emt 0:00:22]} 71. Bh8 {[%emt 0:01:05]} Ba2 {[%emt 0:00:24]} 72. Kd6 {[%emt 0:00:32]} Bb3 {[%emt 0:00:10]} 73. Ke5 {[%emt 0:00:13]} Bc2 {[%emt 0:00:07]} 74. Kf4 {[%emt 0:00:10]} Bd3 {[%emt 0:00:16]} 75. Kg4 {[%emt 0:00:12]} Be2+ {[%emt 0:00:10]} 76. Kh4 {[%emt 0:00:09]} Bd1 {[%emt 0:00:06]} 77. Bd4 {[%emt 0:00:08]} Be2 {[%emt 0:00:26]} 78. Kg3 {[%emt 0:00:07]} Bd1 {[%emt 0:00:10]} 79. Kf4 {[%emt 0:00:15]} Bc2 {[%emt 0:00:07]} 80. Bb2 {[%emt 0:00:30]} Bb1 {[%emt 0:00:06]} 81. Kg4 {[%emt 0:00:06]} Bc2 {[%emt 0:00:31]} 82. Kh5 {[%emt 0:00:25]} Bb1 {[%emt 0:00:35]} 83. Kh6 {[%emt 0:00:26]} Kg8 {[%emt 0:00:04]} 84. g6 {[%emt 0:00:20]} hxg6 {[%emt 0:00:33]} 85. Kxg6 {[%emt 0:00:04]} Bc2 {[%emt 0:00:10]} 86. Kf6 {[%emt 0:00:07]} Bb1 {[%emt 0:00:06]} 87. Ke7 {[%emt 0:00:14]} Bc2 {[%emt 0:00:12]} 88. Be5 {[%emt 0:01:46]} Bb1 {[%emt 0:00:46]} 89. Kd7 {[%emt 0:00:30]} Ba2 {[%emt 0:00:16]} 90. Kc7 {[%emt 0:00:24]} Bd5 {[%emt 0:00:10]} 91. Kd6 {[%emt 0:00:14]} Bb3 {[%emt 0:00:13]} 92. Kc5 {[%emt 0:00:14]} Kf7 {[%emt 0:00:39]} 93. Bh8 {[%emt 0:00:54]} Ba2 {[%emt 0:00:15]} 94. Kb6 {[%emt 0:00:39]} Bd5 {[%emt 0:00:06]} 95. Ka7 {[%emt 0:00:04]} Bc6 {[%emt 0:00:09]} 96. Bc3 {[%emt 0:00:05]} Bd5 {[%emt 0:00:19]} 97. Kb8 {[%emt 0:00:08]} Bc6 {[%emt 0:00:46]} 98. Kc8 {[%emt 0:00:12]} Bd5 {[%emt 0:00:08]} 99. Bd4 {[%emt 0:00:10]} Bc6 {[%emt 0:00:13]} 100. Kd8 {[%emt 0:00:20]} Bd5 {[%emt 0:00:28]} 101. Kd7 {[%emt 0:00:14]} Bb3 {[%emt 0:00:26]} 102. Kd6 {[%emt 0:00:08]} Ba2 {[%emt 0:00:20]} 103. Ke5 {[%emt 0:00:12]} Bb1 {[%emt 0:00:03]} 104. Bc5 {[%emt 0:00:08]} Bc2 {[%emt 0:00:10]} 105. f6 {[%emt 0:00:12]} Bb1 {[%emt 0:00:10]} 106. Be7 {[%emt 0:00:05]} Bc2 {[%emt 0:00:06]} 107. Kd5 {[%emt 0:00:05]} Bb1 {[%emt 0:00:13]} 108. Kd6 {[%emt 0:00:09]} Ba2 {[%emt 0:00:10]} 109. Kc5 {[%emt 0:00:12]} (109. Ke5 $16) 109... Ke6 $14 {[%emt 0:00:42]} 110. Kb6 {[%emt 0:00:10]} Bd5 {[%emt 0:00:06]} 111. Kc7 {[%emt 0:00:08]} Bc6 {[%emt 0:00:24]} 112. Kb6 {[%emt 0:00:14]} Bd5 {[%emt 0:00:22]} 113. Bd8 {[%emt 0:00:04]} Kf7 {[%emt 0:00:30]} 114. Kc5 {[%emt 0:00:08]} Ba2 {[%emt 0:00:10]} 115. Kd4 {[%emt 0:00:35]} Bb1 {[%emt 0:00:08]} 116. Ke5 $1 {[%emt 0:00:08]} Bc2 {[%emt 0:00:07]} 117. Bb6 {[%emt 0:00:12]} Bb1 {[%emt 0:00:08]} 118. Bd4 {[%emt 0:00:04]} Bc2 {[%emt 0:00:09]} 119. Bc3 {[%emt 0:00:04]} Bb1 {[%emt 0:00:06]} 120. Kd6 {[%emt 0:00:10]} Ba2 {[%emt 0:00:09]} 121. Ke5 {[%emt 0:01:31]} Bb1 {[%emt 0:00:08]} 122. Be1 {[%emt 0:00:49]} Bc2 {[%emt 0:00:09]} 123. Bd2 {[%emt 0:00:11]} Bb1 {[%emt 0:00:05]} 124. Bc1 {[%emt 0:00:30]} Bc2 {[%emt 0:00:14]} 125. Bb2 {[%emt 0:00:04]} Bb1 {[%emt 0:00:06]} 126. Kd6 {[%emt 0:00:06]} Ba2 {[%emt 0:00:07]} 127. Kc7 {[%emt 0:00:06]} Bd5 {[%emt 0:00:06]} 128. Kd7 {[%emt 0:00:18]} Ba2 {[%emt 0:00:21] [#]} 129. Kd6 $1 {[%emt 0:00:03]} Bb3 {[%emt 0:00:08]} 130. Ba1 {[%emt 0:00:17]} Ba2 {[%emt 0:00:06]} 131. Be5 {[%emt 0:00:28]} Bb3 {[%emt 0:00:07]} 132. b5 {[%emt 0:00:06]} axb5 {[%emt 0:00:20]} 133. Kc5 {[%emt 0:00:49]} b4 {[%emt 0:01:10]} 134. Bd4 {[%emt 0:01:15]} Ke6 {[%emt 0:00:35]} 135. Kb6 {[%emt 0:00:18]} Bd5 {[%emt 0:00:04]} 136. Kc5 {[%emt 0:00:02]} Bb3 $1 {[%emt 0:00:12]} 137. Kxb4 {[%emt 0:00:05]} Bc2 {[%emt 0:00:20]} 138. Kc5 {[%emt 0:00:06]} Bd3 {[%emt 0:00:53]} 139. Be5 {[%emt 0:00:16]} Kf7 {[%emt 0:00:22]} 140. Kd5 {[%emt 0:00:06]} Bc2 {[%emt 0:00:12] [#]} 141. Bc3 $1 {[%emt 0:00:08]} Bd3 {[%emt 0:00:10]} 142. Ke5 {[%emt 0:00:06]} Bc2 {[%emt 0:00:10]} 143. Bb4 {[%emt 0:00:03]} Bd3 {[%emt 0:00:07]} 144. Be7 {[%emt 0:00:04]} Bc2 {[%emt 0:00:06]} 145. Kd4 {[%emt 0:00:05]} Bd3 {[%emt 0:00:05]} 146. Kc5 {[%emt 0:00:03]} Ke6 {[%emt 0:00:10]} 147. Kb6 {[%emt 0:00:07]} Ba6 {[%emt 0:00:05]} 148. Kc7 {[%emt 0:00:07]} Kf7 {[%emt 0:00:05]} 149. Kb8 {[%emt 0:00:07]} Ke6 {[%emt 0:00:09]} 150. Kc8 {[%emt 0:00:19]} (150. Bd8 $16) 150... b6+ $14 {[%emt 0:05:48]} 151. Kc7 {[%emt 0:00:08]} bxa5 {[%emt 0:00:11]} 152. Kb6 {[%emt 0:00:04]} Bd3 {[%emt 0:00:19]} 153. Kxa5 {[%emt 0:00:06]} Kf7 {[%emt 0:00:08]} 1/2-1/2

[Event "2nd Serbia Open Masters 2022"]
[Site "Novi Sad"]
[Date "2022.07.02"]
[Round "5.25"]
[White "Eren, Ataberk"]
[Black "Pranav Anand"]
[Result "0-1"]
[ECO "E97"]
[WhiteElo "2273"]
[BlackElo "2479"]
[Annotator "TA"]
[PlyCount "148"]
[EventDate "2022.06.28"]
[EventType "swiss"]
[EventCountry "SRB"]
[SourceTitle "playchess.com"]
[Source "ChessBase"]
[SourceQuality "1"]
[TimeControl "40/5400+30:900+30"]

{[%evp 21,148,35,37,33,78,79,74,64,104,86,86,83,81,51,77,52,93,55,84,82,72,55,59,68,79,62,66,70,75,52,90,97,83,87,137,117,439,458,470,470,467,452,585,354,667,652,794,491,470,510,478,470,462,414,577,260,178,167,148,93,92,0,0,0,0,0,0,0,0,-14,-14,-14,-14,-14,-14,-14,0,0,0,-297,-263,-416,-406,-390,-353,-369,-378,-341,-406,-280,0,-183,0,-344,-154,-161,0,-347,-251,-239,-161,-161,-161,-566,-558,-665,-658,-635,-647,-633,-632,-619,-618,-559,-556,-649,-605,-604,-583,-605,-595,-29973,-29976,-29977,-29976,-29977,-29979,-29977,-29978]} 1. d4 {[%emt 0:03:21]} Nf6 {[%emt 0:00:11]} 2. c4 {[%emt 0:00:08]} g6 {[%emt 0:00:07]} 3. Nc3 {[%emt 0:00:12]} Bg7 {[%emt 0:00:05]} 4. e4 {[%emt 0:00:07]} d6 {[%emt 0:00:04]} 5. Be2 {[%emt 0:00:15]} O-O {[%emt 0:00:06]} 6. Nf3 {[%emt 0:00:05]} e5 {[%emt 0:00:07]} 7. O-O {[%emt 0:00:05]} Nc6 {[%emt 0:00:04]} 8. d5 {[%emt 0:00:04]} Ne7 {[%emt 1:33:46]} 9. b4 {[%emt 0:00:04]} Nh5 {[%emt 0:00:00]} 10. Re1 {[%emt 0:00:29]} a5 {[%emt 0:00:00]} 11. bxa5 {[%emt 0:00:07]} Rxa5 {[%emt 0:00:00]} 12. a4 {[%emt 0:00:04] is currently scoring better than 12.Nd2. E97: King's Indian: Classical Main Line (6...e5 7 0-0 Nc6): 8 Be3 and 8 d5 Ne7, not 9 Ne1.} c5 {[%emt 0:00:00]} 13. Ra3 {[%emt 0:00:11]} Ra6 {[%emt 0:00:00]} 14. Bd2 {[%emt 0:01:24] White is better.} h6 {[%emt 0:00:00]} 15. Nb5 {[%emt 0:07:35]} Nf4 {[%emt 0:00:00]} 16. Bf1 $1 {[%emt 0:00:55]} g5 {[%emt 0:00:00] [#]} 17. Bc3 $146 {[%emt 0:18:47]} ({Predecessor:} 17. h4 g4 18. Nh2 Qd7 19. g3 Nh3+ 20. Bxh3 gxh3 21. Qh5 Kh7 22. g4 Ng6 23. g5 {1-0 (33) Leonard,A (2327)-Harvey,D (2332) ICCF email 2016}) 17... Neg6 {[%emt 0:00:00]} 18. Nd2 {[%emt 0:01:32]} Kh7 {[%emt 0:00:00]} 19. Bb2 {[%emt 0:01:15][%cal Bc3b2,Bb2c1,Bc1e3][%mdl 32]} g4 {[%emt 0:00:00]} 20. Bc1 {[%emt 0:04:30]} Bd7 {[%emt 0:00:00]} 21. Nb3 {[%emt 0:03:34]} Qe7 {[%emt 0:00:00]} 22. Be3 {[%emt 0:12:04]} f5 {[%emt 0:00:00]} 23. exf5 {[%emt 0:05:38]} Bxf5 {[%emt 0:00:00]} 24. Nd2 {[%emt 0:05:29]} Qf7 {[%emt 0:00:00]} 25. Nc3 {[%emt 0:06:19]} Bc8 {[%emt 0:00:00]} 26. Nde4 {[%emt 0:02:05]} Nh4 {[%emt 0:00:00]} 27. Nb5 {[%emt 0:02:16]} Rd8 {[%emt 0:00:00]} (27... Qg6 $142 28. Qb1 Kh8) 28. Bd2 $16 {[%emt 0:02:04]} Bh8 $2 {[%emt 0:00:14][%mdl 8192]} (28... Bf5 $16) 29. g3 $18 {[%emt 0:15:32][%csl LRf4,LRh4]} Nf3+ {[%emt 0:02:52]} 30. Rxf3 {[%emt 0:01:46]} gxf3 {[%emt 0:00:02]} 31. gxf4 {[%emt 0:00:10]} exf4 {[%emt 0:02:07]} 32. Qxf3 {[%emt 0:02:16]} Be5 $2 {[%emt 0:02:05]} (32... Rg8+ 33. Kh1 Bg4) 33. Kh1 {[%emt 0:02:23]} Rg8 {[%emt 0:00:10]} 34. Bh3 {[%emt 0:02:00] Against Bg4} Bxh3 {[%emt 0:00:12]} 35. Qxh3 {[%emt 0:00:04]} Qg6 {[%emt 0:00:03]} 36. a5 {[%emt 0:00:50]} Rg7 {[%emt 0:00:45]} 37. f3 {[%emt 0:02:04]} Ra8 {[%emt 0:00:11] [#]} 38. Qg4 {[%emt 0:00:58]} (38. Nbxd6 $142 $1 {[%mdl 512] Black must now prevent Nf5.} Rag8 39. Qf5) 38... Qxg4 {[%emt 0:02:22]} 39. fxg4 {[%emt 0:00:01]} Rxg4 {[%emt 0:00:01]} 40. Nexd6 {[%emt 0:00:00] Pair of Knights!} ({White should try} 40. Bc3 {And now Bxe5 would win.} Bxc3 41. Nbxc3 (41. Nexc3 f3 $16)) 40... f3 $16 {[%emt 0:00:00]} 41. Rxe5 {[%emt 0:14:45]} ({White should play} 41. h3 $16 Rg2 42. Rxe5 (42. Nxb7 Rag8) 42... Rxd2 43. Re1 (43. Nxb7 Rd1+ 44. Kh2 Rg8 45. Re7+ Kh8)) 41... f2 $11 {[%emt 0:02:58][%cal Rf2f1]} 42. Re7+ {[%emt 0:00:04]} Kg8 {[%emt 0:00:39][%cal Rf2f1]} 43. Re1 {[%emt 0:00:08]} fxe1=Q+ {[%emt 0:01:05]} 44. Bxe1 {[%emt 0:00:02]} Rf8 {[%emt 0:00:19][%cal Rf8f1]} 45. Bg3 {[%emt 0:00:20] Strongly threatening Kg2.} h5 $1 {[%emt 0:00:43] Black wants to play ...h4.} 46. Kg2 {[%emt 0:02:51] Hoping for Kh3.} (46. Nxb7 $2 h4 47. Kg2 hxg3 48. hxg3 Rxc4 $19) 46... h4 $1 {[%emt 0:00:50][%mdl 64] Pin} 47. Nc7 {[%emt 0:01:04]} hxg3 {[%emt 0:00:41]} 48. hxg3 {[%emt 0:00:01]} Rf6 {[%emt 0:13:52]} 49. Ne6 {[%emt 0:00:20]} Rfg6 {[%emt 0:01:07]} 50. Nf5 {[%emt 0:00:17][%mdl 8192]} (50. Kf3 $11 {and White stays safe.}) 50... Kf7 $19 {[%emt 0:00:19]} ({Resist} 50... Rxc4 51. Ne7+ Kf7 52. Nxg6 $16) 51. Kf3 {[%emt 0:00:36]} (51. Nd6+ {was necessary.} Ke7 52. Nxb7) 51... Kf6 {[%emt 0:00:21]} 52. Ne3 {[%emt 0:00:41]} Rxg3+ {[%emt 0:00:05]} 53. Kf4 {[%emt 0:00:33]} Rh3 {[%emt 0:00:56]} 54. Nxc5 {[%emt 0:00:40]} Rh4+ {[%emt 0:01:06]} 55. Kf3 {[%emt 0:00:01]} Rh3+ {[%emt 0:01:13]} 56. Kf4 $1 {[%emt 0:00:01]} Rh4+ $2 {[%emt 0:00:04]} (56... Rg7 57. Nf5 Rf7 58. Ne4+ Kg6) 57. Kf3 {[%emt 0:00:03]} Rh7 {[%emt 0:01:08]} (57... Rg8 $19 {...Rc8 is the strong threat.} 58. Nd7+ Kg5) 58. Kf4 $17 {[%emt 0:01:30] [#]} Rh4+ $2 {[%emt 0:00:29]} (58... Rh5 $1 {[%cal Rh5h4]} 59. Ne4+ (59. Nxb7 $2 Rh4+ 60. Kf3 Ke5 $19) 59... Ke7 60. Nf5+ Kd8) 59. Kf3 $19 {[%emt 0:00:04]} Rg7 {[%emt 0:00:48] aiming for ...Rf7.} 60. d6 {[%emt 0:01:11]} Ke5 {[%emt 0:00:07]} 61. d7 {[%emt 0:00:18] [#]} Rh8 $1 {[%emt 0:00:27] Threatens to win with ...Rf7+.} 62. Nd5 $2 {[%emt 0:00:57]} (62. Nd3+ {is a better chance.} Ke6 63. Nc5+ Kd6 64. Nf5+ Kxc5 65. Nxg7) 62... Kd6 {[%emt 0:01:39]} 63. Nxb7+ {[%emt 0:00:15]} Kxd7 {[%emt 0:00:00]} 64. a6 {[%emt 0:00:31]} Kc6 {[%emt 0:00:00]} 65. Nb4+ {[%emt 0:01:16]} Kb6 {[%emt 0:00:00]} 66. Nd5+ {[%emt 0:00:38]} Kxa6 {[%emt 0:00:00]} 67. Nc5+ {[%emt 0:00:02]} Ka7 {[%emt 0:00:01]} 68. Ne6 {[%emt 0:00:17]} Rf7+ {[%emt 0:00:26]} 69. Ke4 {[%emt 0:00:29]} Rh4+ {[%emt 0:00:46]} 70. Ndf4 {[%emt 0:00:35]} Rh1 {[%emt 0:00:16]} 71. Ke5 {[%emt 0:00:59]} Re1+ {[%emt 0:00:04] Black mates.} 72. Kd5 {[%emt 0:00:33]} Rf5+ {[%emt 0:00:20]} 73. Kd4 {[%emt 0:00:41]} Kb8 {[%emt 0:01:39]} 74. Kd3 {[%emt 0:00:08]} Rf6 {[%emt 0:00:20] What a bad dream for White.  Weighted Error Value: White=0.39/Black=0.56} 0-1